fUST/lending_fUST_20260601
["ID","MTS","AMOUNT","RATE_DAILY","PERIOD"]
[423606463,1780258246000,-282.96,0.00015068,2]
[423606462,1780258246000,-1798.09,0.00015068,2]
[423606459,1780258246000,-500.0,0.00015068,2]
[423606460,1780258246000,-500.0,0.00015068,2]
[423606472,1780258246000,-182.3349477,0.00015296,2]
[423606468,1780258246000,-163.71907147,0.00015269,2]
[423606466,1780258246000,-912.385138,0.00015089,2]
[423606469,1780258246000,-493.09724331,0.00015269,2]
[423606473,1780258246000,-190.35109164,0.00015296,2]
[423606465,1780258246000,-500.0,0.00015068,2]
[423606464,1780258246000,-583.62,0.00015068,2]
[423606467,1780258246000,-230.61315342,0.00015202,2]
[423606475,1780258246000,-500.0,0.00015342,2]
[423606470,1780258246000,-254.54797322,0.00015296,2]
[423606474,1780258246000,-486.52,0.00015342,2]
[423606471,1780258246000,-459.37782287,0.00015296,2]
[423606485,1780258246000,-207.2,0.00015342,2]
[423606488,1780258246000,-500.0,0.00015342,2]
[423606480,1780258246000,-500.0,0.00015342,2]
[423606482,1780258246000,-500.0,0.00015342,2]
[423606477,1780258246000,-500.0,0.00015342,2]
[423606481,1780258246000,-593.5,0.00015342,2]
[423606476,1780258246000,-697.8803,0.00015342,2]
[423606478,1780258246000,-409.47,0.00015342,2]
[423606479,1780258246000,-500.0,0.00015342,2]
[423606486,1780258246000,-590.4,0.00015342,2]
[423606487,1780258246000,-1164.9,0.00015342,2]
[423606483,1780258246000,-500.0,0.00015342,2]
[423606489,1780258246000,-1353.93,0.00015342,2]
[423606528,1780258246000,-200.6,0.00015342,2]
[423606505,1780258246000,-1517.97,0.00015342,2]
[423606525,1780258246000,-11665.24,0.00015342,2]
[423606571,1780258246000,-1517.97,0.00015616,2]
[423606572,1780258246000,-672.48,0.00015616,2]
[423606568,1780258246000,-786.17,0.00015616,2]
[423606569,1780258246000,-677.48,0.00015616,2]
[423606562,1780258246000,-500.0,0.00015616,2]
[423606564,1780258246000,-500.0,0.00015616,2]
[423606565,1780258246000,-500.0,0.00015616,2]
[423606563,1780258246000,-500.0,0.00015616,2]
[423606567,1780258246000,-2345.73,0.00015616,2]
[423606570,1780258246000,-500.0,0.00015616,2]
[423606573,1780258246000,-1401.86,0.00015616,2]
[423606580,1780258246000,-153.3,0.00015616,2]
[423606585,1780258246000,-733.76,0.00015616,2]
[423606575,1780258246000,-500.0,0.00015616,2]
[423606584,1780258246000,-500.0,0.00015616,2]
[423606577,1780258246000,-1190.19,0.00015616,2]
[423606578,1780258246000,-501.53,0.00015616,2]
[423606586,1780258246000,-500.0,0.00015616,2]
[423606579,1780258246000,-500.0,0.00015616,2]
[423606574,1780258246000,-862.52,0.00015616,2]
[423606583,1780258246000,-500.0,0.00015616,2]
[423606581,1780258246000,-606.57,0.00015616,2]
[423606582,1780258246000,-500.0,0.00015616,2]
[423606576,1780258246000,-654.99,0.00015616,2]
[423606587,1780258246000,-500.0,0.00015616,2]
[423606588,1780258246000,-11665.24,0.00015616,2]
[423606589,1780258246000,-500.0,0.00015616,2]
[423606590,1780258246000,-500.0,0.00015616,2]
[423606521,1780258246000,-500.0,0.00015342,2]
[423606559,1780258246000,-151.0,0.00015616,2]
[423606561,1780258246000,-500.0,0.00015616,2]
[423606591,1780258246000,-1798.09,0.00015616,2]
[423606566,1780258246000,-743.79,0.00015616,2]
[423606524,1780258246000,-500.0,0.00015342,2]
[423606522,1780258246000,-733.76,0.00015342,2]
[423606527,1780258246000,-214.3,0.00015342,2]
[423606531,1780258246000,-583.62,0.00015342,2]
[423606541,1780258246000,-380.70218328,0.00015613,2]
[423606543,1780258246000,-509.09594645,0.00015613,2]
[423606539,1780258246000,-176.17310852,0.00015613,2]
[423606546,1780258246000,-500.0,0.00015616,2]
[423606544,1780258246000,-500.0,0.00015616,2]
[423606530,1780258246000,-1798.09,0.00015342,2]
[423606545,1780258246000,-697.8803,0.00015616,2]
[423606536,1780258246000,-414.81834356,0.00015585,2]
[423606533,1780258246000,-500.0,0.00015342,2]
[423606534,1780258246000,-461.22630683,0.00015517,2]
[423606592,1780258246000,-583.62,0.00015616,2]
[423606538,1780258246000,-364.6698954,0.00015613,2]
[423606556,1780258246000,-910.32,0.00015616,2]
[423606537,1780258246000,-612.50376382,0.00015613,2]
[423606557,1780258246000,-500.0,0.00015616,2]
[423606548,1780258246000,-500.0,0.00015616,2]
[423606554,1780258246000,-1353.93,0.00015616,2]
[423606553,1780258246000,-500.0,0.00015616,2]
[423606551,1780258246000,-500.0,0.00015616,2]
[423606560,1780258246000,-168.840446,0.00015616,2]
[423606555,1780258246000,-1811.41,0.00015616,2]
[423606550,1780258246000,-500.0,0.00015616,2]
[423606552,1780258246000,-1164.9,0.00015616,2]
[423606549,1780258246000,-500.0,0.00015616,2]
[423606547,1780258246000,-500.0,0.00015616,2]
[423606535,1780258246000,-327.43814294,0.00015585,2]
[423606558,1780258246000,-151.0,0.00015616,2]
[423606638,1780258247000,-500.0,0.0001589,2]
[423606636,1780258247000,-11665.24,0.0001589,2]
[423606635,1780258247000,-500.0,0.0001589,2]
[423606631,1780258247000,-595.2,0.0001589,2]
[423606630,1780258247000,-500.0,0.0001589,2]
[423606626,1780258247000,-1190.19,0.0001589,2]
[423606632,1780258247000,-500.0,0.0001589,2]
[423606629,1780258247000,-606.57,0.0001589,2]
[423606627,1780258247000,-501.53,0.0001589,2]
[423606633,1780258247000,-733.76,0.0001589,2]
[423606634,1780258247000,-500.0,0.0001589,2]
[423606628,1780258247000,-500.0,0.0001589,2]
[423606624,1780258247000,-500.0,0.0001589,2]
[423606659,1780258247000,-2345.73,0.00016164,2]
[423606645,1780258247000,-697.8803,0.00016164,2]
[423606639,1780258247000,-1798.09,0.0001589,2]
[423606643,1780258247000,-838.04080278,0.00016053,2]
[423606640,1780258247000,-583.62,0.0001589,2]
[423606641,1780258247000,-500.0,0.0001589,2]
[423606642,1780258247000,-765.62970478,0.00015929,2]
[423606644,1780258247000,-500.0,0.00016164,2]
[423606646,1780258247000,-500.0,0.00016164,2]
[423606649,1780258247000,-500.0,0.00016164,2]
[423606648,1780258247000,-266.6,0.00016164,2]
[423606647,1780258247000,-500.0,0.00016164,2]
[423606658,1780258247000,-743.79,0.00016164,2]
[423606655,1780258247000,-500.0,0.00016164,2]
[423606625,1780258247000,-654.99,0.0001589,2]
[423606637,1780258247000,-500.0,0.0001589,2]
[423606623,1780258247000,-862.52,0.0001589,2]
[423606606,1780258247000,-1353.93,0.0001589,2]
[423606618,1780258247000,-677.48,0.0001589,2]
[423606657,1780258247000,-500.0,0.00016164,2]
[423606599,1780258247000,-317.48,0.0001589,2]
[423606595,1780258247000,-912.385138,0.00015675,2]
[423606598,1780258247000,-500.0,0.0001589,2]
[423606594,1780258247000,-385.57577681,0.00015639,2]
[423606596,1780258247000,-500.0,0.0001589,2]
[423606593,1780258247000,-500.0,0.00015616,2]
[423606597,1780258247000,-697.8803,0.0001589,2]
[423606600,1780258247000,-500.0,0.0001589,2]
[423606604,1780258247000,-1164.9,0.0001589,2]
[423606603,1780258247000,-500.0,0.0001589,2]
[423606605,1780258247000,-500.0,0.0001589,2]
[423606602,1780258247000,-500.0,0.0001589,2]
[423606622,1780258247000,-1401.86,0.0001589,2]
[423606607,1780258247000,-1811.41,0.0001589,2]
[423606608,1780258247000,-910.32,0.0001589,2]
[423606609,1780258247000,-500.0,0.0001589,2]
[423606610,1780258247000,-210.46,0.0001589,2]
[423606611,1780258247000,-500.0,0.0001589,2]
[423606612,1780258247000,-450.16237977,0.0001589,2]
[423606613,1780258247000,-500.0,0.0001589,2]
[423606619,1780258247000,-500.0,0.0001589,2]
[423606617,1780258247000,-786.17,0.0001589,2]
[423606615,1780258247000,-743.79,0.0001589,2]
[423606620,1780258247000,-1517.97,0.0001589,2]
[423606616,1780258247000,-2345.73,0.0001589,2]
[423606621,1780258247000,-672.48,0.0001589,2]
[423606614,1780258247000,-549.16,0.0001589,2]
[423606601,1780258247000,-431.85,0.0001589,2]
[423606654,1780258247000,-910.32,0.00016164,2]
[423606652,1780258247000,-1353.93,0.00016164,2]
[423606714,1780258247000,-501.53,0.00016438,2]
[423606697,1780258247000,-1811.41,0.00016438,2]
[423606699,1780258247000,-500.0,0.00016438,2]
[423606688,1780258247000,-500.0,0.00016438,2]
[423606698,1780258247000,-910.32,0.00016438,2]
[423606690,1780258247000,-500.0,0.00016438,2]
[423606689,1780258247000,-697.8803,0.00016438,2]
[423606692,1780258247000,-500.0,0.00016438,2]
[423606691,1780258247000,-500.0,0.00016438,2]
[423606686,1780258247000,-587.0,0.00016332,2]
[423606694,1780258247000,-1164.9,0.00016438,2]
[423606693,1780258247000,-200.0,0.00016438,2]
[423606700,1780258247000,-500.0,0.00016438,2]
[423606701,1780258247000,-500.0,0.00016438,2]
[423606696,1780258247000,-1353.93,0.00016438,2]
[423606708,1780258247000,-672.48,0.00016438,2]
[423606705,1780258247000,-677.48,0.00016438,2]
[423606702,1780258247000,-743.79,0.00016438,2]
[423606703,1780258247000,-2345.73,0.00016438,2]
[423606707,1780258247000,-1517.97,0.00016438,2]
[423606704,1780258247000,-786.17,0.00016438,2]
[423606709,1780258247000,-1401.86,0.00016438,2]
[423606713,1780258247000,-1190.19,0.00016438,2]
[423606711,1780258247000,-500.0,0.00016438,2]
[423606712,1780258247000,-654.99,0.00016438,2]
[423606715,1780258247000,-606.57,0.00016438,2]
[423606717,1780258247000,-500.0,0.00016438,2]
[423606716,1780258247000,-500.0,0.00016438,2]
[423606653,1780258247000,-1811.41,0.00016164,2]
[423606706,1780258247000,-500.0,0.00016438,2]
[423606695,1780258247000,-545.7,0.00016438,2]
[423606710,1780258247000,-862.52,0.00016438,2]
[423606682,1780258247000,-583.62,0.00016164,2]
[423606687,1780258247000,-587.0,0.00016332,2]
[423606656,1780258247000,-500.0,0.00016164,2]
[423606651,1780258247000,-500.0,0.00016164,2]
[423606660,1780258247000,-786.17,0.00016164,2]
[423606661,1780258247000,-677.48,0.00016164,2]
[423606662,1780258247000,-500.0,0.00016164,2]
[423606672,1780258247000,-606.57,0.00016164,2]
[423606664,1780258247000,-672.48,0.00016164,2]
[423606663,1780258247000,-1517.97,0.00016164,2]
[423606665,1780258247000,-1401.86,0.00016164,2]
[423606671,1780258247000,-500.0,0.00016164,2]
[423606670,1780258247000,-501.53,0.00016164,2]
[423606666,1780258247000,-862.52,0.00016164,2]
[423606668,1780258247000,-654.99,0.00016164,2]
[423606650,1780258247000,-1164.9,0.00016164,2]
[423606667,1780258247000,-500.0,0.00016164,2]
[423606669,1780258247000,-1190.19,0.00016164,2]
[423606680,1780258247000,-500.0,0.00016164,2]
[423606678,1780258247000,-11665.24,0.00016164,2]
[423606681,1780258247000,-1798.09,0.00016164,2]
[423606683,1780258247000,-500.0,0.00016164,2]
[423606677,1780258247000,-500.0,0.00016164,2]
[423606679,1780258247000,-500.0,0.00016164,2]
[423606685,1780258247000,-300.0,0.00016332,2]
[423606676,1780258247000,-500.0,0.00016164,2]
[423606673,1780258247000,-500.0,0.00016164,2]
[423606684,1780258247000,-912.385138,0.00016261,2]
[423606674,1780258247000,-500.0,0.00016164,2]
[423606675,1780258247000,-733.76,0.00016164,2]
[423606760,1780258248000,-677.48,0.00016712,2]
[423606754,1780258248000,-500.0,0.00016712,2]
[423606763,1780258248000,-672.48,0.00016712,2]
[423606756,1780258248000,-500.0,0.00016712,2]
[423606748,1780258248000,-1811.41,0.00016712,2]
[423606761,1780258248000,-500.0,0.00016712,2]
[423606757,1780258248000,-743.79,0.00016712,2]
[423606765,1780258248000,-862.52,0.00016712,2]
[423606753,1780258248000,-332.505076,0.00016712,2]
[423606751,1780258248000,-332.505076,0.00016712,2]
[423606747,1780258248000,-1353.93,0.00016712,2]
[423606762,1780258248000,-1517.97,0.00016712,2]
[423606755,1780258248000,-500.0,0.00016712,2]
[423606758,1780258248000,-2345.73,0.00016712,2]
[423606772,1780258248000,-500.0,0.00016712,2]
[423606764,1780258248000,-1401.86,0.00016712,2]
[423606759,1780258248000,-786.17,0.00016712,2]
[423606767,1780258248000,-654.99,0.00016712,2]
[423606774,1780258248000,-733.76,0.00016712,2]
[423606769,1780258248000,-200.0,0.00016712,2]
[423606768,1780258248000,-1190.19,0.00016712,2]
[423606773,1780258248000,-500.0,0.00016712,2]
[423606775,1780258248000,-500.0,0.00016712,2]
[423606770,1780258248000,-501.53,0.00016712,2]
[423606771,1780258248000,-606.57,0.00016712,2]
[423606776,1780258248000,-11665.24,0.00016712,2]
[423606787,1780258248000,-352.049915,0.00016986,2]
[423606744,1780258248000,-1164.9,0.00016712,2]
[423606766,1780258248000,-500.0,0.00016712,2]
[423606742,1780258248000,-1298.201093,0.00016712,2]
[423606780,1780258248000,-583.62,0.00016712,2]
[423606752,1780258248000,-332.505076,0.00016712,2]
[423606725,1780258248000,-583.62,0.00016438,2]
[423606722,1780258248000,-500.0,0.00016438,2]
[423606723,1780258248000,-500.0,0.00016438,2]
[423606720,1780258248000,-545.65,0.00016438,2]
[423606719,1780258248000,-500.0,0.00016438,2]
[423606718,1780258248000,-733.76,0.00016438,2]
[423606721,1780258248000,-11665.24,0.00016438,2]
[423606724,1780258248000,-1798.09,0.00016438,2]
[423606726,1780258248000,-500.0,0.00016438,2]
[423606728,1780258248000,-429.15855145,0.00016438,2]
[423606729,1780258248000,-373.0,0.00016451,2]
[423606730,1780258248000,-697.8803,0.00016712,2]
[423606727,1780258248000,-214.57927572,0.00016438,2]
[423606740,1780258248000,-1298.201093,0.00016712,2]
[423606737,1780258248000,-151.0,0.00016712,2]
[423606734,1780258248000,-151.0,0.00016712,2]
[423606733,1780258248000,-500.0,0.00016712,2]
[423606736,1780258248000,-151.0,0.00016712,2]
[423606732,1780258248000,-500.0,0.00016712,2]
[423606738,1780258248000,-151.0,0.00016712,2]
[423606735,1780258248000,-151.694459,0.00016712,2]
[423606745,1780258248000,-151.0,0.00016712,2]
[423606746,1780258248000,-151.0,0.00016712,2]
[423606741,1780258248000,-151.0,0.00016712,2]
[423606749,1780258248000,-910.32,0.00016712,2]
[423606750,1780258248000,-332.505076,0.00016712,2]
[423606743,1780258248000,-1298.201093,0.00016712,2]
[423606739,1780258248000,-1298.201093,0.00016712,2]
[423606731,1780258248000,-500.0,0.00016712,2]
[423606788,1780258248000,-352.049915,0.00016986,2]
[423606842,1780258248000,-786.17,0.0001726,2]
[423606778,1780258248000,-500.0,0.00016712,2]
[423606810,1780258248000,-501.53,0.00016986,2]
[423606816,1780258248000,-11665.24,0.00016986,2]
[423606819,1780258248000,-1798.09,0.00016986,2]
[423606817,1780258248000,-500.0,0.00016986,2]
[423606827,1780258248000,-151.0,0.0001726,2]
[423606823,1780258248000,-697.8803,0.0001726,2]
[423606821,1780258248000,-610.55,0.00016986,2]
[423606820,1780258248000,-583.62,0.00016986,2]
[423606822,1780258248000,-235.0,0.00016986,3]
[423606818,1780258248000,-500.0,0.00016986,2]
[423606825,1780258248000,-500.0,0.0001726,2]
[423606824,1780258248000,-500.0,0.0001726,2]
[423606829,1780258248000,-532.408039,0.0001726,2]
[423606807,1780258248000,-500.0,0.00016986,2]
[423606841,1780258248000,-2345.73,0.0001726,2]
[423606839,1780258248000,-500.0,0.0001726,2]
[423606828,1780258248000,-500.0,0.0001726,2]
[423606831,1780258248000,-532.408039,0.0001726,2]
[423606830,1780258248000,-532.408039,0.0001726,2]
[423606834,1780258248000,-1353.93,0.0001726,2]
[423606832,1780258248000,-532.408039,0.0001726,2]
[423606837,1780258248000,-500.0,0.0001726,2]
[423606833,1780258248000,-1164.9,0.0001726,2]
[423606838,1780258248000,-500.0,0.0001726,2]
[423606835,1780258248000,-1811.41,0.0001726,2]
[423606836,1780258248000,-910.32,0.0001726,2]
[423606843,1780258248000,-677.48,0.0001726,2]
[423606779,1780258248000,-1798.09,0.00016712,2]
[423606840,1780258248000,-743.79,0.0001726,2]
[423606806,1780258248000,-862.52,0.00016986,2]
[423606826,1780258248000,-151.0,0.0001726,2]
[423606811,1780258248000,-606.57,0.00016986,2]
[423606777,1780258248000,-500.0,0.00016712,2]
[423606808,1780258248000,-654.99,0.00016986,2]
[423606783,1780258248000,-697.8803,0.00016986,2]
[423606784,1780258248000,-500.0,0.00016986,2]
[423606781,1780258248000,-500.0,0.00016712,2]
[423606782,1780258248000,-912.385138,0.00016847,2]
[423606785,1780258248000,-500.0,0.00016986,2]
[423606786,1780258248000,-500.0,0.00016986,2]
[423606790,1780258248000,-352.049915,0.00016986,2]
[423606793,1780258248000,-1811.41,0.00016986,2]
[423606791,1780258248000,-1164.9,0.00016986,2]
[423606789,1780258248000,-352.049915,0.00016986,2]
[423606800,1780258248000,-786.17,0.00016986,2]
[423606801,1780258248000,-677.48,0.00016986,2]
[423606795,1780258248000,-500.0,0.00016986,2]
[423606792,1780258248000,-1353.93,0.00016986,2]
[423606809,1780258248000,-1190.19,0.00016986,2]
[423606812,1780258248000,-500.0,0.00016986,2]
[423606797,1780258248000,-500.0,0.00016986,2]
[423606805,1780258248000,-1401.86,0.00016986,2]
[423606814,1780258248000,-733.76,0.00016986,2]
[423606815,1780258248000,-500.0,0.00016986,2]
[423606802,1780258248000,-500.0,0.00016986,2]
[423606804,1780258248000,-672.48,0.00016986,2]
[423606813,1780258248000,-500.0,0.00016986,2]
[423606798,1780258248000,-743.79,0.00016986,2]
[423606799,1780258248000,-2345.73,0.00016986,2]
[423606794,1780258248000,-910.32,0.00016986,2]
[423606796,1780258248000,-500.0,0.00016986,2]
[423606803,1780258248000,-1517.97,0.00016986,2]
[423606894,1780258249000,-733.76,0.00017534,2]
[423606886,1780258249000,-862.52,0.00017534,2]
[423606887,1780258249000,-500.0,0.00017534,2]
[423606884,1780258249000,-672.48,0.00017534,2]
[423606882,1780258249000,-623.61210271,0.00017534,2]
[423606893,1780258249000,-585.04,0.00017534,2]
[423606879,1780258249000,-2345.73,0.00017534,2]
[423606878,1780258249000,-743.79,0.00017534,2]
[423606877,1780258249000,-500.0,0.00017534,2]
[423606876,1780258249000,-500.0,0.00017534,2]
[423606874,1780258249000,-151.0,0.00017534,2]
[423606885,1780258249000,-1401.86,0.00017534,2]
[423606883,1780258249000,-1517.97,0.00017534,2]
[423606888,1780258249000,-654.99,0.00017534,2]
[423606896,1780258249000,-11665.24,0.00017534,2]
[423606891,1780258249000,-606.57,0.00017534,2]
[423606889,1780258249000,-1190.19,0.00017534,2]
[423606892,1780258249000,-500.0,0.00017534,2]
[423606895,1780258249000,-500.0,0.00017534,2]
[423606898,1780258249000,-500.0,0.00017534,2]
[423606899,1780258249000,-1798.09,0.00017534,2]
[423606900,1780258249000,-583.62,0.00017534,2]
[423606897,1780258249000,-197.95,0.00017534,2]
[423606901,1780258249000,-697.8803,0.00017808,2]
[423606904,1780258249000,-1353.93,0.00017808,2]
[423606902,1780258249000,-500.0,0.00017808,2]
[423606905,1780258249000,-1811.41,0.00017808,2]
[423606903,1780258249000,-1164.9,0.00017808,2]
[423606880,1780258249000,-786.17,0.00017534,2]
[423606890,1780258249000,-501.53,0.00017534,2]
[423606881,1780258249000,-677.48,0.00017534,2]
[423606853,1780258249000,-606.57,0.0001726,2]
[423606873,1780258249000,-435.96,0.00017534,2]
[423606906,1780258249000,-910.32,0.00017808,2]
[423606844,1780258249000,-500.0,0.0001726,2]
[423606854,1780258249000,-500.0,0.0001726,2]
[423606845,1780258249000,-1517.97,0.0001726,2]
[423606855,1780258249000,-500.0,0.0001726,2]
[423606846,1780258249000,-672.48,0.0001726,2]
[423606850,1780258249000,-654.99,0.0001726,2]
[423606847,1780258249000,-1401.86,0.0001726,2]
[423606849,1780258249000,-500.0,0.0001726,2]
[423606852,1780258249000,-501.53,0.0001726,2]
[423606848,1780258249000,-862.52,0.0001726,2]
[423606851,1780258249000,-1190.19,0.0001726,2]
[423606862,1780258249000,-583.62,0.0001726,2]
[423606857,1780258249000,-500.0,0.0001726,2]
[423606856,1780258249000,-733.76,0.0001726,2]
[423606859,1780258249000,-500.0,0.0001726,2]
[423606868,1780258249000,-453.65,0.00017534,2]
[423606867,1780258249000,-500.0,0.00017534,2]
[423606860,1780258249000,-500.0,0.0001726,2]
[423606858,1780258249000,-11665.24,0.0001726,2]
[423606861,1780258249000,-1798.09,0.0001726,2]
[423606863,1780258249000,-309.575,0.00017295,2]
[423606865,1780258249000,-697.8803,0.00017534,2]
[423606864,1780258249000,-150.308,0.00017295,2]
[423606866,1780258249000,-500.0,0.00017534,2]
[423606871,1780258249000,-1811.41,0.00017534,2]
[423606875,1780258249000,-151.0,0.00017534,2]
[423606870,1780258249000,-1353.93,0.00017534,2]
[423606869,1780258249000,-1164.9,0.00017534,2]
[423606872,1780258249000,-910.32,0.00017534,2]
[423606907,1780258249000,-241.42,0.00017808,2]
[423606912,1780258249000,-677.48,0.00017808,2]
[423606908,1780258249000,-500.0,0.00017808,2]
[423606939,1780258249000,-786.17,0.00018082,2]
[423606946,1780258249000,-654.99,0.00018082,2]
[423606955,1780258249000,-1798.09,0.00018082,2]
[423606956,1780258249000,-583.62,0.00018082,2]
[423606957,1780258249000,-697.8803,0.00018356,2]
[423606958,1780258249000,-500.0,0.00018356,2]
[423606945,1780258249000,-500.0,0.00018082,2]
[423606947,1780258249000,-1190.19,0.00018082,2]
[423606948,1780258249000,-501.53,0.00018082,2]
[423606949,1780258249000,-606.57,0.00018082,2]
[423606950,1780258249000,-243.92,0.00018082,2]
[423606952,1780258249000,-500.0,0.00018082,2]
[423606951,1780258249000,-733.76,0.00018082,2]
[423606954,1780258249000,-500.0,0.00018082,2]
[423606953,1780258249000,-11665.24,0.00018082,2]
[423606960,1780258249000,-1353.93,0.00018356,2]
[423606970,1780258249000,-1401.86,0.00018356,2]
[423606971,1780258249000,-862.52,0.00018356,2]
[423606959,1780258249000,-1164.9,0.00018356,2]
[423606972,1780258249000,-500.0,0.00018356,2]
[423606961,1780258249000,-1811.41,0.00018356,2]
[423606962,1780258249000,-910.32,0.00018356,2]
[423606963,1780258249000,-500.0,0.00018356,2]
[423606966,1780258249000,-786.17,0.00018356,2]
[423606968,1780258249000,-1517.97,0.00018356,2]
[423606964,1780258249000,-743.79,0.00018356,2]
[423606969,1780258249000,-672.48,0.00018356,2]
[423606967,1780258249000,-677.48,0.00018356,2]
[423606909,1780258249000,-743.79,0.00017808,2]
[423606940,1780258249000,-677.48,0.00018082,2]
[423606934,1780258249000,-1811.41,0.00018082,2]
[423606965,1780258249000,-2345.73,0.00018356,2]
[423606937,1780258249000,-743.79,0.00018082,2]
[423606910,1780258249000,-2345.73,0.00017808,2]
[423606973,1780258249000,-654.99,0.00018356,2]
[423606917,1780258249000,-500.0,0.00017808,2]
[423606915,1780258249000,-1401.86,0.00017808,2]
[423606914,1780258249000,-672.48,0.00017808,2]
[423606913,1780258249000,-1517.97,0.00017808,2]
[423606911,1780258249000,-786.17,0.00017808,2]
[423606916,1780258249000,-862.52,0.00017808,2]
[423606920,1780258249000,-501.53,0.00017808,2]
[423606921,1780258249000,-606.57,0.00017808,2]
[423606919,1780258249000,-1190.19,0.00017808,2]
[423606929,1780258249000,-300.0,0.000179,2]
[423606922,1780258249000,-500.0,0.00017808,2]
[423606925,1780258249000,-11665.24,0.00017808,2]
[423606918,1780258249000,-654.99,0.00017808,2]
[423606928,1780258249000,-583.62,0.00017808,2]
[423606936,1780258249000,-500.0,0.00018082,2]
[423606924,1780258249000,-500.0,0.00017808,2]
[423606935,1780258249000,-910.32,0.00018082,2]
[423606930,1780258249000,-697.8803,0.00018082,2]
[423606933,1780258249000,-1353.93,0.00018082,2]
[423606944,1780258249000,-862.52,0.00018082,2]
[423606932,1780258249000,-1164.9,0.00018082,2]
[423606938,1780258249000,-2345.73,0.00018082,2]
[423606942,1780258249000,-672.48,0.00018082,2]
[423606931,1780258249000,-500.0,0.00018082,2]
[423606941,1780258249000,-1517.97,0.00018082,2]
[423606926,1780258249000,-500.0,0.00017808,2]
[423606927,1780258249000,-1798.09,0.00017808,2]
[423606923,1780258249000,-733.76,0.00017808,2]
[423606943,1780258249000,-1401.86,0.00018082,2]
[423607015,1780258250000,-1401.86,0.0001863,2]
[423607017,1780258250000,-180.04,0.0001863,2]
[423607023,1780258250000,-500.0,0.0001863,2]
[423607014,1780258250000,-672.48,0.0001863,2]
[423607024,1780258250000,-11665.24,0.0001863,2]
[423607009,1780258250000,-743.79,0.0001863,2]
[423607013,1780258250000,-1517.97,0.0001863,2]
[423607005,1780258250000,-332.505076,0.0001863,2]
[423607007,1780258250000,-332.505076,0.0001863,2]
[423607003,1780258250000,-332.505076,0.0001863,2]
[423607016,1780258250000,-862.52,0.0001863,2]
[423607012,1780258250000,-677.48,0.0001863,2]
[423607001,1780258250000,-1353.93,0.0001863,2]
[423607032,1780258250000,-697.8803,0.00018904,2]
[423607018,1780258250000,-654.99,0.0001863,2]
[423607019,1780258250000,-1190.19,0.0001863,2]
[423607020,1780258250000,-501.53,0.0001863,2]
[423607021,1780258250000,-606.57,0.0001863,2]
[423607022,1780258250000,-733.76,0.0001863,2]
[423607037,1780258250000,-352.049915,0.00018904,2]
[423607027,1780258250000,-583.62,0.0001863,2]
[423607034,1780258250000,-352.049915,0.00018904,2]
[423607029,1780258250000,-236.18605585,0.000188,2]